Cogmind - Beta 14 @@@ ROGUE MODE // 2024.09.08 @ 01:19:16 Player: Trione Result: Destroyed by CT-TH1(R) with Subdweller Laser Performance ------------- Evolutions (0) 0 Regions Visited (3) 600 Robots Destroyed (59) 295 Value Destroyed (1170) 1170 Prototype IDs (0) 0 Alien Tech Used (0) 0 Bonus (46) 46 TOTAL SCORE: 2111 Bonus ------- Follower Combat Kills 46 Cogmind --------- Core Integrity 0/250 Matter 116/300 Energy 100/100 System Corruption 0% Temperature Cool (6) Movement Rolling (200) Ox8 Location -10/Subcaves Parts ------- > --- POWER (1) -------- Subdweller Power Source > --- PROPULSION (2) --- Light Treads Wheel > --- UTILITY (2) ------ Huge Storage Unit Seismic Detector > --- WEAPON (2) ------- Grenade Launcher Mining Laser > --- INVENTORY (25) --- Subdweller Power Source Light Treads Light Treads Wheel Wheel Heat Sink High-capacity Matter Pod (200) Light Armor Plating EM Pulse Gun EM Pulse Gun EM Pulse Gun EM Pulse Gun Beam Cannon Assault Rifle Light Cannon Light Cannon Light Cannon Light Cannon Grenade Launcher Datajack Peak State ------------ > --- POWER ------------ Subdweller Power Source > --- PROPULSION ------- Light Treads Wheel > --- UTILITY ---------- Huge Storage Unit Seismic Detector > --- WEAPON ----------- Beam Cannon Grenade Launcher > --- INVENTORY -------- Subdweller Power Source Light Treads Light Treads Wheel Wheel Heat Sink High-capacity Matter Pod Light Armor Plating EM Pulse Gun EM Pulse Gun EM Pulse Gun EM Pulse Gun Assault Rifle Light Cannon Light Cannon Light Cannon Light Cannon Grenade Launcher Datajack Mining Laser [Rating: 10] Favorites ----------- Power Light Ion Engine Engine Light Ion Engine Propulsion Light Treads Treads Light Treads Leg Aluminum Leg Wheel Wheel Utility Huge Storage Unit Device Seismic Detector Storage Huge Storage Unit Protection Light Armor Plating Weapon Beam Cannon Energy Gun EM Pulse Gun Energy Cannon Beam Cannon Ballistic Gun Assault Rifle Ballistic Cannon Light Cannon Launcher Grenade Launcher Special Weapon Mining Laser Build | -11 -10 -10 -10 ------- Run | Yrd Mat Min Sub Slots Evolved . | . . . . Power . | . . . . Propulsion . | . . . . Utility . | . . . . Weapon . | . . . . Parts Attached 49 | 8 22 8 11 Power 5 | 1 2 1 1 Engine 5 | 1 2 1 1 Core . | . . . . Reactor . | . . . . Propulsion 11 | 2 7 2 . Treads 5 | . 4 1 . Leg 2 | 2 . . . Wheel 4 | . 3 1 . Hover . | . . . . Flight . | . . . . Utility 6 | 2 3 . 1 Device 3 | 1 1 . 1 Storage 2 | 1 1 . . Processor . | . . . . Hackware . | . . . . Protection 1 | . 1 . . Artifact . | . . . . Weapon 27 | 3 10 5 9 Energy Gun 2 | 2 . . . Energy Cannon 9 | . 5 2 2 Ballistic Gun 2 | 1 . 1 . Ballistic Cannon 1 | . 1 . . Launcher 11 | . 4 2 5 Special Weapon 2 | . . . 2 Impact Weapon . | . . . . Slashing Weapon . | . . . . Piercing Weapon . | . . . . Special Melee Weapon . | . . . . Unidentified Prototypes . | . . . . Parts Lost 6 | . 2 2 2 Power 2 | . . 1 1 Propulsion 1 | . 1 . . Utility 1 | . 1 . . Weapon 2 | . . 1 1 Highest Loss Streak 2 | . 1 2 2 To Critical Strikes . | . . . . Average Slot Usage (%) 99 | . 100 100 98 Engine 13 | . 14 14 12 Treads 14 | . 14 14 14 Leg 1 | . 2 . . Wheel 12 | . 11 13 14 Device 9 | . 5 14 14 Storage 14 | . 14 14 14 Protection 4 | . 8 . . Energy Cannon 18 | . 26 11 5 Ballistic Gun 2 | . . 8 3 Launcher 4 | . . 7 12 Special Weapon 1 | . . . 6 Peak Build Rating 10 | 7 8 9 10 Average Rating 7 | 5 7 8 8 On Entrance 5 | . 7 8 8 Naked Turns . | . . . . Heaviest Build 94 | 13 94 90 92 Greatest Support 40 | 20 40 10 10 Greatest Overweight (x) 9 | 3 9 8 9 Average Overweight (x) 7 | . 7 8 8 Largest Inventory Capacity 25 | 8 25 25 25 Average Capacity 23 | 7 23 25 25 Most Carried 21 | 6 19 21 20 Average Carried 17 | 5 16 19 19 Final Capacity 25 | 8 25 25 25 Final Carried 20 | 6 19 19 20 Class Distribution -------------------- 100% | Mutant Dominant Class ---------------- Mutant | -10/Materials Mutant | -10/Mines Mutant | -10/Subcaves Resources | -11 -10 -10 -10 ----------- Run | Yrd Mat Min Sub Matter Collected 1109 | 324 536 100 149 Remotely . | . . . . Salvage Created 1692 | 149 1371 23 149 Parts 136 | 14 110 4 8 Haulers Intercepted 2 | . 2 . . Recyclers Shooed 4 | . 4 . . Parts Field Recycled . | . . . . Retrieved Matter . | . . . . Parts Self-Destructed 2 | . . . 2 Prevented . | . . . . Kills | -11 -10 -10 -10 ------- Run | Yrd Mat Min Sub Combat Hostiles Destroyed 35 | . 25 5 5 Cannons 17 | . 14 2 1 AOE 18 | . 11 3 4 Classes Destroyed 11 | 2 7 1 1 Worker 6 | . 6 . . Builder 3 | . 3 . . Tunneler 3 | 3 . . . Hauler 2 | . 2 . . Recycler 6 | 1 5 . . Mechanic 1 | . 1 . . Watcher 3 | . 3 . . Swarmer 12 | . 9 3 . Grunt 17 | . 16 . 1 Demolisher 2 | . . 2 . Subdweller 4 | . . . 4 Best Kill Streak 5 | 4 5 3 3 Combat Bots Only 4 | . 4 3 3 Max Kills in Single Turn 3 | 1 3 3 1 Gunslinging . | . . . . Exploded 3 | . 3 3 1 Melee . | . . . . Uniques/NPCs Destroyed . | . . . . Combat | -11 -10 -10 -10 -------- Run | Yrd Mat Min Sub Hostile Shots Fired 117 | . 76 24 17 Missed 35 | . 24 7 4 Damage Taken 1133 | . 566 310 257 Core 266 | . 109 68 89 Absorbed by Shields . | . . . . Core Remaining (%) 100 | 100 . . . Volleys Fired 124 | 16 74 8 26 Largest 2 | 1 2 2 2 Hottest 120 | 20 120 120 100 Shots Fired 203 | 16 139 12 36 Gun 17 | 16 . 1 . Cannon 143 | . 130 8 5 Launcher 34 | . 9 3 22 Special 9 | . . . 9 Kinetic 25 | 16 8 1 . Thermal 144 | . 122 8 14 Explosive 34 | . 9 3 22 Electromagnetic . | . . . . Robot Hit Streak 10 | 3 10 8 3 Robot Miss Streak 3 | 1 3 3 1 Penetration Max . | . . . . Secondary Targets . | . . . . Shots Hit Robots 94 | 12 70 6 6 Core Hits 76 | 5 46 6 19 Critical Kills . | . . . . Critical Parts Destroyed 1 | 1 . . . Critical Strikes 1 | 1 . . . Destroy 1 | 1 . . . Melee Attacks . | . . . . Impact . | . . . . Slashing . | . . . . Piercing . | . . . . Sneak Attacks . | . . . . Combat Hostiles . | . . . . Follow-up Attacks . | . . . . Damage Inflicted 3103 | 168 1836 217 882 Guns 168 | 168 . . . Cannons 1439 | . 1265 105 69 Explosions 1496 | . 571 112 813 Melee . | . . . . Ramming . | . . . . Kinetic 223 | 168 55 . . Thermal 1384 | . 1210 105 69 Explosive 1496 | . 571 112 813 Electromagnetic . | . . . . Impact . | . . . . Slashing . | . . . . Piercing . | . . . . Highest Corruption . | . . . . Average Corruption . | . . . . Corruption Purged . | . . . . Corruption Blocked . | . . . . Overload Shots . | . . . . Overflow Damage 57 | . 49 . 8 Projectiles 3 | . 3 . . Explosions 54 | . 46 . 8 Melee . | . . . . Knockbacks . | . . . . Impact . | . . . . Kinetic . | . . . . Secondary . | . . . . Self-Inflicted Damage 41 | . 39 2 . Shots 4 | . 3 1 . Rammed . | . . . . Targets Rammed . | . . . . Kicked . | . . . . Crushed . | . . . . Highest Temperature 464 | . 464 75 . Average Temperature 103 | . 105 45 . Received Heat Transfer 249 | . 213 . 36 Effects 3 | . 3 . . Shutdowns 2 | . 2 . . Damage (major) 1 | . 1 . . Siege Activations . | . . . . Robots Corrupted . | . . . . Combat Hostiles . | . . . . Parts Fried . | . . . . Impact Corruptions . | . . . . Robots Melted . | . . . . Combat Hostiles . | . . . . Parts Melted 2 | . 2 . . Heat Transferred 2923 | . 2553 222 148 Parts Sabotaged . | . . . . Parts Stolen . | . . . . Parts Stripped . | . . . . Power Chain Reactions . | . . . . Alert | -11 -10 -10 -10 ------- Run | Yrd Mat Min Sub Peak Influence 328 | 20 328 172 . Initial 117 | . 13 117 . Average 114 | 9 128 88 . Maximum Alert Level 1 | . 1 . . Low Security (%) 71 | 100 59 100 . Level 1 28 | . 40 . . Level 2 . | . . . . Level 3 . | . . . . Level 4 . | . . . . Level 5 . | . . . . High Security . | . . . . Max Security . | . . . . Squads Dispatched 8 | . 8 . . Investigation 6 | . 6 . . Extermination . | . . . . Reinforcement 2 | . 2 . . Assault . | . . . . Garrison . | . . . . Intercept . | . . . . Searches Triggered . | . . . . Construction Impeded . | . . . . Haulers Reinforced . | . . . . Active Scanning Responses . | . . . . Cargo Convoy Interrupts . | . . . . Stealth | -11 -10 -10 -10 --------- Run | Yrd Mat Min Sub Distress Signals 1 | . 1 . . Communications Jammed . | . . . . Distress Signals . | . . . . Times Spotted 53 | . 32 13 8 Peak Tracking Total 6 | . 6 3 2 Tactical Retreats 5 | . 3 2 . Traps | -11 -10 -10 -10 ------- Run | Yrd Mat Min Sub Traps Triggered 4 | . 4 . . Indirectly . | . . . . Trap Hack Attempts . | . . . . Triggered . | . . . . Disarmed . | . . . . Reprogrammed . | . . . . Reused . | . . . . Traps Extracted . | . . . . Installed . | . . . . Triggered . | . . . . Machines | -11 -10 -10 -10 ---------- Run | Yrd Mat Min Sub Machines Disabled 5 | . 2 3 . Max in Single Turn 2 | . 1 2 . Machines Repaired . | . . . . Machines Dismantled . | . . . . Machines Sabotaged . | . . . . Overloaded Fab Kills . | . . . . Hacking | -11 -10 -10 -10 --------- Run | Yrd Mat Min Sub Machines Accessed 7 | . 7 . . Terminals 5 | . 5 . . Fabricators . | . . . . Repair Stations . | . . . . Recycling Units 2 | . 2 . . Scanalyzers . | . . . . Garrison Access . | . . . . Total Hacks 19 | . 19 . . Successful 9 | . 9 . . Failed 10 | . 10 . . Catastrophic . | . . . . Database Lockouts . | . . . . Manual 19 | . 19 . . Terminals 17 | . 17 . . Fabricators . | . . . . Repair Stations . | . . . . Recycling Units 2 | . 2 . . Scanalyzers . | . . . . Garrison Access . | . . . . Terminal Hacks 2 | . 2 . . Terminal Index 1 | . 1 . . Unreport Threat 1 | . 1 . . Fabricator Hacks . | . . . . Repair Station Hacks . | . . . . Recycling Unit Hacks . | . . . . Scanalyzer . | . . . . Garrison Access Hacks . | . . . . Unauthorized Hacks 7 | . 7 . . Terminals 5 | . 5 . . Botnet 4 | . 4 . . Operators 1 | . 1 . . Fabricators . | . . . . Repair Stations . | . . . . Recycling Units 2 | . 2 . . Tunnel 2 | . 2 . . Scanalyzers . | . . . . Garrison Access . | . . . . Data Cores Recovered . | . . . . Used . | . . . . Hacking Detections 5 | . 5 . . Full Trace Events . | . . . . Feedback Events . | . . . . Feedback Blocked . | . . . . Robot Schematics Acquired . | . . . . Robots Built . | . . . . Authchips . | . . . . Time . | . . . . Total Robot Build Rating . | . . . . Part Schematics Acquired . | . . . . Parts Built . | . . . . Authchips . | . . . . Time . | . . . . Total Part Build Rating . | . . . . Parts Repaired . | . . . . Time . | . . . . Parts Recycled . | . . . . Recycled Matter . | . . . . Retrieved Matter . | . . . . Retrieved Components . | . . . . Parts Scanalyzed . | . . . . Part Schematics Acquired . | . . . . Parts Damaged . | . . . . Bothacking | -11 -10 -10 -10 ------------ Run | Yrd Mat Min Sub Used RIF Installer . | . . . . Robots Hacked . | . . . . Non-combat . | . . . . Combat . | . . . . Robot Hacks Applied . | . . . . Relay Couplers Released . | . . . . Fabnet Peak Effective % . | . . . . Robots Rewired . | . . . . Allies Hacked . | . . . . Hacks Repelled . | . . . . Allies | -11 -10 -10 -10 -------- Run | Yrd Mat Min Sub Total Allies 3 | . . 3 . Largest Group 3 | . . 3 . Highest-Rated Group 40 | . . 40 . Highest-Rated Ally 16 | . . 16 . Total Orders . | . . . . Ally Attacks 21 | . . 21 . Total Damage 248 | . . 248 . Kills 4 | . . 4 . Allies Corrupted . | . . . . Allies Melted . | . . . . Intel | -11 -10 -10 -10 ------- Run | Yrd Mat Min Sub Robot Analysis Total . | . . . . Derelict Logs Recovered 3 | . . 2 1 Drone Launches . | . . . . Drone Recoveries . | . . . . Exploration | -11 -10 -10 -10 ------------- Run | Yrd Mat Min Sub Turns Passed 5842 | 151 3213 1231 1247 Spaces Moved 2449 | 82 1340 464 563 Core 18 | 18 . . . Treads 93 | . 93 . . Legs 210 | 64 146 . . Wheels 2128 | . 1101 464 563 Hover . | . . . . Flight . | . . . . Fastest Speed 50 | 50 120 200 200 Average Speed 203 | 123 211 200 200 Slowest Speed 320 | 200 320 200 215 Overloaded Moves . | . . . . Propulsion Burnouts . | . . . . Robots Hopped . | . . . . Cave-ins Triggered . | . . . . Exploration Rate (%) 57 | 5 99 95 32 Regions Visited 3 Branch Regions 2 Pre-discovered Areas 3 | . 2 1 . Known Exits Taken . | . . . . Unknown Exits Taken 3 | 1 1 1 . Scrap Searched 1 | . . 1 . Spaces Dug 27 | . 27 . . Terrain Destroyed 147 | . 64 17 66 Melee . | . . . . Projectile . | . . . . AOE 147 | . 64 17 66 Terrain Rammed . | . . . . Walls Destroyed . | . . . . Machines Disabled . | . . . . Actions | -11 -10 -10 -10 --------- Run | Yrd Mat Min Sub Total 3067 | 111 1580 753 623 Wait 404 | . 111 272 21 Move 2446 | 81 1339 463 563 Hop . | . . . . Pick Up 34 | 6 24 2 2 Fast Attach 8 | 7 . . 1 Attach 5 | . 2 2 1 Detach . | . . . . Swap 36 | 1 20 6 9 Drop 10 | . 10 . . Fire 124 | 16 74 8 26 Melee . | . . . . Ram . | . . . . Kick . | . . . . Crush . | . . . . Escape Stasis . | . . . . Rewire . | . . . . Trap . | . . . . Miscellaneous . | . . . . Route ------- -11/Scrapyard -10/Materials (discovered 4 exits: [*Mat x3] / [*Min]) -10/Mines (discovered 3 exits: [*Mat x2] / [*Sub]) -10/Subcaves History --------- Turn | Location | Event 39 | -11/Scrapyard | Discovered new exit (range 14) 152 | -11/Scrapyard | Entered Materials 300 | -10/Materials | Build established: Mutant 690 | -10/Materials | Discovered new exit (range 11) 839 | -10/Materials | Discovered new exit (range 16) 1279 | -10/Materials | Discovered new exit (range 13) 1947 | -10/Materials | Discovered new exit (range 12) 3365 | -10/Materials | Entered Mines 3368 | -10/Mines | Assembled infested the area 3373 | -10/Mines | Assisted by a Guerilla fighting off Assembled 3762 | -10/Mines | Discovered new exit (range 5) 3856 | -10/Mines | Core integrity fell below 50% 3967 | -10/Mines | Assisted by bots powering up and referring to "LRC-V3" 4031 | -10/Mines | Learned location of Storage (-8) 4373 | -10/Mines | Learned Materials garrison access intel 4429 | -10/Mines | Discovered new exit (range 5) 4505 | -10/Mines | Discovered new exit (range 12) 4596 | -10/Mines | Entered Subcaves 4608 | -10/Subcaves | Learned location of 1 exit from Materials 5274 | -10/Subcaves | Core integrity fell below 20% 5284 | -10/Subcaves | Ambushed by Subdwellers from Twisted Machinery 5351 | -10/Subcaves | Ambushed by Subdweller buried in earth 5843 | -10/Subcaves | Destroyed by CT-TH1(R) with Subdweller Laser Last Messages --------------- 05364_ A6-1O9(R) affixes Scrap Shield Fragment to Scrap Shield. 05367_ A6-1O9(R) destroyed. 05377_ Subatomizers dissect the Sub. Power Source. 05378_ Acquired 13 matter. 05398_ Acquired 3 matter. 05405_ Subatomizers dissect the Sub. Monowheel. 05406_ Acquired Sub. Power Source. 05412_ D2-I9A(R) destroyed. 05414_ SW-ICS(R) destroyed. 05417_ Subatomizers dissect the Sub. Monowheel. 05418_ Acquired 22 matter. 05422_ Acquired 23 matter. 05429_ Subatomizers dissect the Sub. Optics. 05435_ Acquired Sub. Power Source. 05443_ Subatomizers dissect the Sub. Optics. 05448_ The unstable cave ceiling collapses. 05457_ Subatomizers dissect the Sub. Monowheel. 05472_ The unstable cave ceiling collapses. 05510_ Sub. Power Source shoots sparks and powers down. Map ----- +----------------------------------------------------+ | | | | | | | | | | | | | | | ?????????????????????????????????????????????????? | | ?????????????????????????????????????????????????? | | ?????????????????????????????????????????????????? | | ?????????????????????????????????????????????????? | | ?????????????????????????????????????????????????? | | ?????????????????????????????????????????????????? | | ?????????????????????????????????????????????????? | | ?????????????????????????????????????????????????? | | ?????????????????????????????????????????????????? | | ?????????????????????????????????????????????????? | | ?????????????????????????????????????????????????? | | ?????????????????????????????????????????????????? | | ?????????????????????????????????????????????????? | | ?????????????????????????????????????????????????? | | ?????????????????????????????????????????????????? | | ??????????????????#????##?#############??????????? | | ?????????????###### ### ## # # # # #??????????# | | ???????????? RR ##?????????# | | ????????????"" $ @ ###???????# | | ????????????????# ## # ## # # # # ##??##### | | ?????????????????????????################ #### # # | | ????????????????????????????????????????## # | | ?????????????????????????????????????????# | | ?????????????????????????????????????????# # ## | | ????????????????????????????????????????# ### | | ????????????????????????????????????????## ##?# | | ????????????????????????????????????????# ??# | | ????????????????????????????????????????# #??### | | ????????????????????????????????????????# #????? | | ????????????????????????????????????????# #????? | | ????????????????????????????????????????# #????? | | ????????????????????????????????????????# # ????? | | ????????????????????????????????????????## ?#????? | | ?????????????????????????????????????????# ??????? | | ?????????????????????????????????????????"#??????? | | ?????????????????????????????????????????#???????? | | ?????????????????????????????????????????????????? | | ?????????????????????????????????????????????????? | | ?????????????????????????????????????????????????? | | ?????????????????????????????????????????????????? | | ?????????????????????????????????????????????????? | | ?????????????????????????????????????????????????? | | ?????????????????????????????????????????????????? | +----------------------------------------------------+ Best States ------------- Heat Dissipation 35 Energy Generation 15 Energy Capacity 250 Matter Stores 300 Matter Capacity 300 Sight Range 16 Terrain Scan Density 10 Armor Coverage 150 Evasion (%) 55 Recoil Reduction 2 Item Schematics ----------------- None Robot Schematics ------------------ None Fabricated ------------ Nothing Alien Tech Used ----------------- None Achievements -------------- None Challenges ------------ None Game ------ Seed StorageBurstScrapsphere Manual? 0 Play Time 00:27:00 Cumulative 1333.5 hours Start 2024.09.08 @ 00:54:33 End 2024.09.08 @ 01:19:16 Sessions 1 Manual Loads 0 Difficulty Rogue Special Mode None Game No. 474 Rogue 474 Adventurer 0 Explorer 0 Win Type - Total 30 Types 14/2/8/0/0/0/6/0/0 Lore% 77 Gallery% 90 Achievement% 85 Wizard Run 0 Options --------- Layout 1 ASCII 0 Keyboard 0 Movement Vi Keybinds 0 Fullscreen 0 Font 14/CherryShadow Map View 64x42 Zoom Use 0% Tactical HUD 1 Map Filters NONE Filters NONE Steam 1 RUN: 5f33a51f-473f-41f0-9670-26668141df92